bitfinex/quotes_BTCUSD_20250901
["timestamp","ask_amount","ask_price","bid_price","bid_amount"]
[1756692047378,0.713311,108330.0,108320.0,0.18563738]
[1756692047986,0.714311,108330.0,108320.0,0.18563738]
[1756692049456,0.759081,108330.0,108320.0,0.1856381]
[1756692050520,0.41577994,108330.0,108320.0,0.1856381]
[1756692050738,0.57421994,108330.0,108320.0,0.1856381]
[1756692050986,0.758841,108330.0,108320.0,0.1856381]
[1756692052703,0.08347242,108330.0,108320.0,0.1856381]
[1756692052936,0.57648736,108330.0,108320.0,0.1856381]
[1756692053138,0.57417994,108330.0,108320.0,0.1856381]
[1756692054212,0.758801,108330.0,108320.0,0.1856381]
[1756692056424,0.41577994,108330.0,108320.0,0.1856381]
[1756692056631,0.758721,108330.0,108320.0,0.1856381]
[1756692057161,0.42641348,108330.0,108320.0,0.1856381]
[1756692057389,0.758721,108330.0,108320.0,0.1856381]
[1756692057807,0.758721,108330.0,108320.0,0.001]
[1756692058049,1.52400853,108330.0,108320.0,0.001]
[1756692060273,1.36568853,108330.0,108320.0,0.1856381]
[1756692060477,0.76088348,108330.0,108320.0,0.1877881]
[1756692060638,0.90864994,108330.0,108320.0,0.1877881]
[1756692060838,0.91077994,108330.0,108320.0,0.1877881]
[1756692061052,1.098511,108330.0,108320.0,0.1877881]
[1756692061246,1.098511,108330.0,108320.0,0.1856381]
[1756692061452,0.940351,108330.0,108320.0,0.1856381]
[1756692061691,1.098471,108330.0,108320.0,0.1877881]
[1756692062247,1.098471,108330.0,108320.0,0.001]
[1756692062501,1.43077852,108330.0,108320.0,0.001]
[1756692062703,1.43077852,108330.0,108320.0,0.1856381]
[1756692062852,0.76616348,108330.0,108320.0,0.1856381]
[1756692063068,1.098471,108330.0,108320.0,0.1856381]
[1756692064116,0.940351,108330.0,108320.0,0.1856381]
[1756692064333,1.093191,108330.0,108320.0,0.1877881]
[1756692064541,1.095321,108330.0,108320.0,0.1877881]
[1756692064820,0.91061994,108330.0,108320.0,0.1877881]
[1756692065027,0.91372994,108330.0,108320.0,0.1877881]
[1756692065355,0.75572994,108330.0,108320.0,0.1877881]
[1756692065534,0.91376994,108330.0,108320.0,0.1877881]
[1756692065890,0.03341242,108330.0,108320.0,0.1877881]
[1756692066093,0.028748,108330.0,108320.0,0.1909581]
[1756692066294,0.03341242,108330.0,108320.0,0.1877881]
[1756692066744,0.00566442,108330.0,108320.0,0.1877881]
[1756692066956,0.001,108330.0,108320.0,0.1909581]
[1756692067100,0.00566442,108330.0,108320.0,0.1909581]
[1756692068192,0.00566442,108330.0,108320.0,0.3489581]
[1756692068374,0.00566442,108330.0,108320.0,0.44193811]
[1756692068713,0.001,108330.0,108320.0,0.44193811]
[1756692068924,0.00566442,108330.0,108320.0,0.44193811]
[1756692069354,0.00566442,108330.0,108320.0,0.77424563]
[1756692070164,0.001,108330.0,108320.0,0.44193811]
[1756692070378,0.00566442,108330.0,108320.0,0.44193811]
[1756692070773,0.001,108330.0,108320.0,1.17424563]
[1756692070978,0.001,108330.0,108320.0,1.24520563]
[1756692071579,0.01,108340.0,108330.0,0.18462106]
[1756692071892,0.01311,108340.0,108330.0,0.43544107]
[1756692072096,0.01,108340.0,108330.0,0.44076107]
[1756692072341,0.01,108340.0,108330.0,0.28292107]
[1756692072481,0.01,108340.0,108330.0,0.44076107]
[1756692073102,0.01,108340.0,108330.0,0.28292107]
[1756692073306,0.01,108340.0,108330.0,0.44112107]
[1756692074212,0.01,108340.0,108330.0,0.44212107]
[1756692076048,0.01,108340.0,108330.0,0.77442859]
[1756692077162,0.01,108340.0,108330.0,0.28392107]
[1756692077366,0.01,108340.0,108330.0,0.77422859]
[1756692079460,0.01,108340.0,108330.0,0.44188107]
[1756692079662,0.01,108340.0,108330.0,0.77418859]
[1756692082586,0.01,108340.0,108330.0,0.28392107]
[1756692082795,0.01204,108340.0,108330.0,0.97097859]
[1756692082994,0.01528,108340.0,108330.0,0.43859107]
[1756692083423,0.01528,108340.0,108330.0,0.28075107]
[1756692083643,0.35455936,108340.0,108330.0,0.18562106]
[1756692083863,0.01994442,108340.0,108330.0,0.18562106]
[1756692084070,0.35455936,108340.0,108330.0,0.18562106]
[1756692084279,0.35225194,108340.0,108330.0,0.18562106]
[1756692085256,0.53685596,108340.0,108330.0,0.18562106]
[1756692085521,0.58162596,108340.0,108330.0,0.18562106]
[1756692085866,0.60937096,108340.0,108330.0,0.18562106]
[1756692086434,0.60937096,108340.0,108330.0,0.18462106]
[1756692087662,0.61018635,108340.0,108330.0,0.18462106]
[1756692088750,0.00466442,108330.0,108320.0,0.1846381]
[1756692088995,0.23407252,108320.0,108310.0,0.00014247]
[1756692089201,0.38174194,108320.0,108310.0,0.18479762]
[1756692089415,0.54154194,108320.0,108310.0,0.18479762]
[1756692089660,0.72942004,108320.0,108310.0,0.18479762]
[1756692089860,0.54478194,108320.0,108310.0,0.18479762]
[1756692090094,0.72942004,108320.0,108310.0,0.18479762]
[1756692090937,0.72942004,108320.0,108310.0,0.00014247]
[1756692091776,0.72942004,108320.0,108310.0,0.18479762]
[1756692093020,0.72942004,108320.0,108310.0,0.00014247]
[1756692093230,0.75717004,108320.0,108310.0,0.18479762]
[1756692093649,0.75717004,108320.0,108310.0,0.00014247]
[1756692093857,0.93941004,108320.0,108310.0,0.00014247]
[1756692094231,1.09713004,108320.0,108310.0,0.18479762]
[1756692094844,0.75477194,108320.0,108310.0,0.18479762]
[1756692095046,1.09813004,108320.0,108310.0,0.18479762]
[1756692096482,0.53641442,108320.0,108310.0,0.18479762]
[1756692096707,0.86872194,108320.0,108310.0,0.18687762]
[1756692096889,0.87072194,108320.0,108310.0,0.18687762]
[1756692097019,0.91082752,108320.0,108310.0,0.18687762]
[1756692097238,0.19313442,108320.0,108310.0,0.18687762]
[1756692097442,0.03541442,108320.0,108310.0,0.34459762]
[1756692097708,0.03441442,108320.0,108310.0,0.34779762]
[1756692097866,0.88270194,108330.0,108320.0,0.1846381]
[1756692098061,0.027748,108330.0,108320.0,0.1867181]
[1756692098439,0.52447994,108330.0,108320.0,0.1867181]
[1756692098665,0.52771994,108330.0,108320.0,0.1867181]
[1756692098797,0.52771994,108330.0,108320.0,0.1846381]
[1756692099200,0.36999994,108330.0,108320.0,0.1867181]
[1756692099407,0.52771994,108330.0,108320.0,0.1867181]
[1756692100602,0.52771994,108330.0,108320.0,0.1846381]
[1756692100809,0.712341,108330.0,108320.0,0.1846381]
[1756692101442,0.00466442,108320.0,108310.0,0.18479762]
[1756692101649,0.57396746,108320.0,108310.0,0.00014247]
[1756692102027,0.57166004,108320.0,108310.0,0.18479762]
[1756692102621,0.38702194,108320.0,108310.0,0.18579762]
[1756692102824,0.16238442,108320.0,108310.0,0.18787762]
[1756692102992,0.49903936,108320.0,108310.0,0.18787762]
[1756692103357,0.34225194,108320.0,108310.0,0.18787762]
[1756692103569,0.33697194,108320.0,108310.0,0.18787762]
[1756692103784,0.53946194,108320.0,108310.0,0.18787762]
[1756692103921,0.54150194,108320.0,108310.0,0.18479762]
[1756692104126,0.21243442,108320.0,108310.0,0.18479762]
[1756692104533,0.55817539,108320.0,108310.0,0.18479762]
[1756692104874,0.58592539,108320.0,108310.0,0.18479762]
[1756692105083,0.58592539,108320.0,108310.0,0.18687762]
[1756692105667,0.24018442,108320.0,108310.0,0.18687762]
[1756692106075,0.03241442,108320.0,108310.0,0.18687762]
[1756692106274,0.55039442,108330.0,108320.0,0.1846381]
[1756692106483,0.92592339,108330.0,108320.0,0.1846381]
[1756692107522,0.92692339,108330.0,108320.0,0.1846381]
[1756692107668,0.92892339,108330.0,108320.0,0.1846381]
[1756692107872,0.58318242,108330.0,108320.0,0.1867181]
[1756692108106,0.92892339,108330.0,108320.0,0.1846381]
[1756692108308,0.92892339,108330.0,108320.0,0.1867181]
[1756692108750,0.92892339,108330.0,108320.0,0.1846381]
[1756692109553,0.92692339,108330.0,108320.0,0.1846381]
[1756692110687,0.03241242,108330.0,108320.0,0.1866581]
[1756692110893,0.027748,108330.0,108320.0,0.1897081]
[1756692111295,0.03241242,108330.0,108320.0,0.1897081]
[1756692111521,0.28792981,108340.0,108330.0,0.18462106]
[1756692111680,0.66640578,108340.0,108330.0,0.18462106]
[1756692113636,0.8510098,108340.0,108330.0,0.18462106]
[1756692116122,0.04943442,108320.0,108310.0,0.19403037]
[1756692116302,0.74483091,108320.0,108310.0,0.18479762]
[1756692116531,0.74252349,108320.0,108310.0,0.18479762]
[1756692116765,0.42453252,108320.0,108310.0,0.18479762]
[1756692116905,0.77027349,108320.0,108310.0,0.18479762]
[1756692117520,0.77027349,108320.0,108310.0,0.00114247]
[1756692117725,1.11027349,108320.0,108310.0,0.00114247]
[1756692117924,1.11027349,108320.0,108310.0,0.00214247]
[1756692118290,1.18127349,108320.0,108310.0,0.00214247]
[1756692118490,1.02355349,108320.0,108310.0,0.18679762]
[1756692118756,1.18127349,108320.0,108310.0,0.18679762]
[1756692118984,1.18127349,108320.0,108310.0,0.00114247]
[1756692119340,1.18127349,108320.0,108310.0,0.18579762]
[1756692119523,1.18127349,108320.0,108310.0,0.18479762]
[1756692119947,1.18227349,108320.0,108310.0,0.18479762]
[1756692120163,1.02355349,108320.0,108310.0,0.18479762]
[1756692120363,0.59853,108320.0,108310.0,0.18681762]
[1756692120653,0.57996442,108320.0,108310.0,0.18681762]
[1756692121054,0.58096442,108320.0,108310.0,0.18681762]
[1756692121416,0.52547,108320.0,108310.0,0.18986762]
[1756692121622,0.52547,108320.0,108310.0,0.18681762]
[1756692121846,0.19013442,108320.0,108310.0,0.18986762]
[1756692122004,0.16238442,108320.0,108310.0,0.18986762]
[1756692122211,0.19013242,108330.0,108320.0,0.1846381]
[1756692122450,0.027748,108330.0,108320.0,0.28268811]
[1756692122650,0.00466442,108330.0,108320.0,0.28268811]
[1756692122851,0.08930123,108340.0,108330.0,0.18462106]
[1756692123083,0.09429123,108340.0,108330.0,0.18664106]
[1756692123693,0.4400322,108340.0,108330.0,0.18664106]
[1756692123924,0.43772478,108340.0,108330.0,0.18462106]
[1756692124145,0.6223288,108340.0,108330.0,0.18462106]
[1756692124356,0.6233288,108340.0,108330.0,0.18462106]
[1756692124555,0.43872478,108340.0,108330.0,0.18462106]
[1756692125186,0.41098078,108340.0,108330.0,0.18462106]
[1756692125628,0.5955848,108340.0,108330.0,0.18462106]
[1756692127223,0.23405548,108330.0,108320.0,0.1846381]
[1756692127431,0.74044645,108330.0,108320.0,0.1846381]
[1756692127677,0.00466442,108320.0,108310.0,0.35175037]
[1756692127987,0.35477281,108320.0,108310.0,0.19605037]
[1756692128181,0.00965442,108320.0,108310.0,0.19605037]
[1756692128383,0.00965442,108320.0,108310.0,0.19403037]
[1756692128384,0.54234091,108320.0,108310.0,0.19403037]
[1756692128691,0.58480349,108320.0,108310.0,0.18479762]
[1756692128907,0.58480349,108320.0,108310.0,0.00014247]
[1756692129802,0.92480349,108320.0,108310.0,0.00014247]
[1756692130442,0.55210442,108320.0,108310.0,0.18479762]
[1756692130644,1.08248349,108320.0,108310.0,0.18479762]
[1756692130864,1.08348349,108320.0,108310.0,0.00014247]
[1756692131090,1.08348349,108320.0,108310.0,0.18479762]
[1756692131319,1.08348349,108320.0,108310.0,0.00014247]
[1756692133481,1.59320447,108320.0,108310.0,0.00014247]
[1756692133705,1.46201861,108320.0,108310.0,0.00014247]
[1756692133971,1.27399764,108320.0,108310.0,0.00014247]
[1756692134821,1.2475035,108320.0,108310.0,0.00014247]
[1756692135489,1.43552447,108320.0,108310.0,0.00014247]
[1756692135676,1.59324447,108320.0,108310.0,0.00014247]
[1756692135817,1.62099747,108320.0,108310.0,0.00014247]
[1756692136020,1.46327747,108320.0,108310.0,0.00014247]
[1756692136232,1.2752565,108320.0,108310.0,0.00014247]
[1756692138097,1.2752565,108320.0,108310.0,0.18479762]
[1756692138098,1.1175365,108320.0,108310.0,0.18479762]
[1756692138302,1.2752565,108320.0,108310.0,0.18479762]
[1756692138859,1.2752565,108320.0,108310.0,0.00014247]
[1756692139301,1.62099747,108320.0,108310.0,0.00014247]
[1756692139718,1.2752565,108320.0,108310.0,0.00014247]
[1756692141287,1.1175365,108320.0,108310.0,0.00014247]
[1756692141503,1.2752565,108320.0,108310.0,0.00014247]
[1756692142539,1.62099747,108320.0,108310.0,0.00014247]
[1756692142753,1.2752565,108320.0,108310.0,0.18479762]
[1756692143049,1.2752565,108320.0,108310.0,0.00014247]
[1756692144607,1.2752565,108320.0,108310.0,0.18479762]
[1756692145146,1.2752565,108320.0,108310.0,0.00014247]
[1756692146206,1.26152811,108320.0,108310.0,0.18479762]
[1756692146421,1.05437369,108320.0,108310.0,0.18479762]
[1756692146630,0.951167,108320.0,108310.0,0.18694762]
[1756692146877,1.1378551,108320.0,108310.0,0.18694762]
[1756692147054,0.956267,108320.0,108310.0,0.18694762]
[1756692147266,1.1409051,108320.0,108310.0,0.18694762]
[1756692147478,0.956267,108320.0,108310.0,0.18479762]
[1756692147686,1.1409051,108320.0,108310.0,0.18479762]
[1756692147903,1.1409051,108320.0,108310.0,0.00014247]
[1756692148122,1.15474192,108320.0,108310.0,0.00014247]
[1756692148554,1.59357133,108320.0,108310.0,0.00014247]
[1756692149153,1.24772193,108320.0,108310.0,0.00014247]
[1756692149498,1.27547493,108320.0,108310.0,0.00014247]
[1756692149705,1.62132433,108320.0,108310.0,0.00014247]
[1756692150790,1.62032433,108320.0,108310.0,0.00014247]
[1756692151012,1.62232433,108320.0,108310.0,0.00014247]
[1756692151234,1.62332433,108320.0,108310.0,0.00014247]
[1756692151452,1.62132433,108320.0,108310.0,0.00014247]
[1756692151670,1.62032433,108320.0,108310.0,0.00014247]
[1756692152092,1.62232433,108320.0,108310.0,0.00014247]
[1756692153383,1.62532433,108320.0,108310.0,0.00114247]
[1756692153609,6.76105361,108320.0,108310.0,0.00114247]
[1756692153836,6.78467179,108320.0,108310.0,0.00114247]
[1756692154524,6.76105361,108320.0,108310.0,0.00114247]
[1756692154741,6.62707737,108320.0,108310.0,0.00114247]
[1756692154953,6.78479737,108320.0,108310.0,0.00114247]
[1756692155165,6.78962733,108320.0,108310.0,0.00114247]
[1756692157490,6.79826744,108320.0,108310.0,0.00114247]
[1756692157939,6.840809,108320.0,108310.0,0.00114247]
[1756692158250,6.83216889,108320.0,108310.0,0.00114247]
[1756692158478,6.84080958,108320.0,108310.0,0.00114247]
[1756692160827,6.67842516,108320.0,108310.0,0.00114247]
[1756692161054,1.64923363,108320.0,108310.0,0.00114247]
[1756692161267,1.67484839,108320.0,108310.0,0.00114247]
[1756692161476,1.66836968,108320.0,108310.0,0.00114247]
[1756692161681,1.67484824,108320.0,108310.0,0.00114247]
[1756692161914,1.76314456,108320.0,108310.0,0.00114247]
[1756692162126,6.7896387,108320.0,108310.0,0.00114247]
[1756692162337,6.63191857,108320.0,108310.0,0.00114247]
[1756692162552,6.78963792,108320.0,108310.0,0.00114247]
[1756692163858,6.63191792,108320.0,108310.0,0.00114247]
[1756692164063,6.78963792,108320.0,108310.0,0.00114247]
[1756692165484,6.79827456,108320.0,108310.0,0.00114247]
[1756692168108,6.77095022,108320.0,108310.0,0.00114247]
[1756692168784,6.79085048,108320.0,108310.0,0.00114247]
[1756692169657,6.78785048,108320.0,108310.0,0.00014247]
[1756692169876,6.78585048,108320.0,108310.0,0.00014247]
[1756692170091,6.84185048,108320.0,108310.0,0.00114247]
[1756692170307,6.89585048,108320.0,108310.0,0.00114247]
[1756692170749,6.89185048,108320.0,108310.0,0.00114247]
[1756692170964,7.19754357,108320.0,108310.0,1e-08]
[1756692171202,7.22803771,108320.0,108310.0,1e-08]
[1756692171418,7.27655378,108320.0,108310.0,1e-08]
[1756692171641,0.90634502,108270.0,108260.0,0.00293]
[1756692171855,1.13506502,108270.0,108260.0,0.00293]
[1756692172094,0.56951043,108260.0,108250.0,0.00293]
[1756692172310,0.72723043,108260.0,108250.0,0.00293]
[1756692172523,0.74121965,108260.0,108250.0,0.00495]
[1756692172730,0.74121965,108260.0,108250.0,0.1897075]
[1756692172917,0.74121965,108260.0,108250.0,0.19018279]
[1756692174105,0.74221965,108260.0,108250.0,0.19418279]
[1756692174678,0.74221965,108260.0,108250.0,0.01042529]
[1756692175126,0.76998565,108260.0,108250.0,0.00749529]
[1756692175576,1.19515289,108260.0,108250.0,0.00749529]
[1756692176034,1.20024289,108260.0,108250.0,0.00749529]
[1756692176450,1.20024289,108260.0,108250.0,0.00547529]
[1756692176650,1.04252289,108260.0,108250.0,0.00547529]
[1756692176861,1.20024289,108260.0,108250.0,0.00547529]
[1756692177484,1.20024289,108260.0,108250.0,0.00749529]
[1756692177699,1.39564894,108260.0,108250.0,0.00547529]
[1756692177888,1.22118171,108260.0,108250.0,0.00547529]
[1756692179797,1.06346171,108260.0,108250.0,0.00547529]
[1756692180013,1.22118171,108260.0,108250.0,0.00547529]
[1756692180219,1.06346171,108260.0,108250.0,0.00749529]
[1756692180418,1.22118171,108260.0,108250.0,0.00749529]
[1756692181322,1.06346171,108260.0,108250.0,0.00749529]
[1756692181487,1.22118171,108260.0,108250.0,0.00749529]
[1756692182676,1.22118171,108260.0,108250.0,0.00547529]
[1756692182884,1.22118171,108260.0,108250.0,0.00749529]
[1756692183604,1.06346171,108260.0,108250.0,0.00749529]
[1756692183786,1.21609171,108260.0,108250.0,0.01042529]
[1756692184220,1.21805171,108260.0,108250.0,0.00749529]
[1756692184349,1.22118171,108260.0,108250.0,0.00749529]
[1756692184548,1.3063714,108260.0,108250.0,0.00749529]
[1756692185212,1.3063714,108260.0,108250.0,0.00547529]
[1756692187529,1.22118171,108260.0,108250.0,0.00547529]
[1756692190061,0.90620966,108260.0,108250.0,0.00547529]
[1756692190277,1.23839689,108260.0,108250.0,0.00547529]
[1756692190630,1.23839689,108260.0,108250.0,0.00447529]
[1756692190834,1.23739689,108260.0,108250.0,0.00047529]
[1756692191055,1.23839689,108260.0,108250.0,0.00247529]
[1756692191285,1.32669321,108260.0,108250.0,0.00247529]
[1756692191491,1.32669321,108260.0,108250.0,0.00047529]
[1756692191718,1.65988044,108260.0,108250.0,0.00247529]
[1756692191909,1.70139981,108260.0,108250.0,0.00247529]
[1756692192431,1.7343546,108260.0,108250.0,0.00247529]
[1756692192976,6.7343546,108260.0,108250.0,0.00247529]
[1756692193394,6.73435395,108260.0,108250.0,0.00247529]
[1756692193605,6.73535395,108260.0,108250.0,0.00247529]
[1756692195068,6.24544672,108260.0,108250.0,0.00247529]
[1756692195281,6.11463103,108260.0,108250.0,0.00247529]
[1756692195506,1.24581689,108260.0,108250.0,0.00247529]
[1756692195724,6.57800412,108260.0,108250.0,0.00247529]
[1756692196385,6.24581689,108260.0,108250.0,0.00247529]
[1756692196802,6.08813689,108260.0,108250.0,0.00247529]
[1756692197013,1.28478498,108260.0,108250.0,0.00247529]
[1756692197459,1.61697221,108260.0,108250.0,0.00247529]
[1756692197667,6.64346635,108260.0,108250.0,0.00247529]
[1756692198351,6.66332051,108260.0,108250.0,0.00247529]
[1756692198830,6.66332051,108260.0,108250.0,0.00449529]
[1756692198831,0.90853966,108260.0,108250.0,0.00449529]
[1756692199056,1.24268689,108260.0,108250.0,0.00449529]
[1756692199296,1.24581689,108260.0,108250.0,0.00449529]
[1756692199749,1.03361247,108260.0,108250.0,0.00449529]
[1756692199969,0.87978807,108260.0,108250.0,0.00742529]
[1756692200158,0.87335578,108260.0,108250.0,0.00742529]
[1756692200405,1.21982522,108260.0,108250.0,0.00742529]
[1756692200813,1.21335578,108260.0,108250.0,0.00742529]
[1756692201064,1.16858578,108260.0,108250.0,0.19218279]
[1756692201274,1.21335578,108260.0,108250.0,0.19218279]
[1756692201717,0.95803135,108260.0,108250.0,0.19218279]
[1756692201928,0.73875412,108260.0,108250.0,0.19218279]
[1756692202165,1.12037577,108260.0,108250.0,0.19218279]
[1756692202372,0.96269577,108260.0,108250.0,0.19218279]
[1756692202662,1.12037577,108260.0,108250.0,0.00742529]
[1756692202876,1.12037577,108260.0,108250.0,0.00449529]
[1756692203094,1.12038891,108260.0,108250.0,0.19237279]
[1756692203314,0.77094565,108260.0,108250.0,0.19237279]
[1756692203528,1.10313288,108260.0,108250.0,0.19237279]
[1756692203709,1.12039043,108260.0,108250.0,0.19237279]
[1756692203851,0.77094565,108260.0,108250.0,0.19237279]
[1756692204058,1.12039044,108260.0,108250.0,0.00761529]
[1756692204474,1.10313288,108260.0,108250.0,0.00761529]
[1756692204687,0.91839245,108260.0,108250.0,0.19237279]
[1756692205511,0.76071245,108260.0,108250.0,0.19237279]
[1756692205720,0.42852522,108260.0,108250.0,0.19237279]
[1756692205926,0.58620522,108260.0,108250.0,0.19237279]
[1756692206219,0.91372803,108260.0,108250.0,0.19237279]
[1756692206447,0.91839245,108260.0,108250.0,0.19237279]
[1756692206652,0.58620522,108260.0,108250.0,0.19237279]
[1756692206873,0.5815408,108260.0,108250.0,0.19237279]
[1756692207080,0.42852522,108260.0,108250.0,0.19237279]
[1756692207287,0.342,108260.0,108250.0,0.19237279]
[1756692207491,0.16434442,108260.0,108250.0,0.2853528]
[1756692207694,0.00666442,108260.0,108250.0,0.2853528]
[1756692207894,0.16434442,108260.0,108250.0,0.2853528]
[1756692208097,0.55069382,108260.0,108250.0,0.19037279]
[1756692208301,0.5505264,108260.0,108250.0,0.18725279]
[1756692208510,0.5493864,108260.0,108250.0,0.19437279]
[1756692208714,0.5483864,108260.0,108250.0,0.19037279]
[1756692209116,0.5493864,108260.0,108250.0,0.19425279]
[1756692209329,0.5483864,108260.0,108250.0,0.18725279]
[1756692209546,0.73312683,108260.0,108250.0,0.18725279]
[1756692209968,0.73312683,108260.0,108250.0,0.18825279]
[1756692210236,0.00466442,108260.0,108250.0,0.19137279]
[1756692210454,0.74938365,108270.0,108260.0,0.18474043]
[1756692210686,0.570212,108270.0,108260.0,0.18989043]
[1756692210902,0.57487642,108270.0,108260.0,0.18989043]
[1756692211246,0.412532,108270.0,108260.0,0.18989043]
[1756692211492,0.570212,108270.0,108260.0,0.18989043]
[1756692211668,0.570212,108270.0,108260.0,0.19089043]
[1756692212234,0.20811442,108270.0,108260.0,0.19389043]
[1756692212669,0.00566442,108270.0,108260.0,0.61905767]
[1756692213787,0.00566442,108270.0,108260.0,0.77669767]
[1756692214679,0.00566442,108270.0,108260.0,0.81746534]
[1756692214897,0.001,108270.0,108260.0,1.01746534]
[1756692215113,0.00566442,108270.0,108260.0,1.01746534]
[1756692216475,0.001,108270.0,108260.0,0.68527811]
[1756692216717,0.00566442,108270.0,108260.0,1.01746534]
[1756692217019,0.00566442,108270.0,108260.0,0.68527811]
[1756692217229,0.00566442,108270.0,108260.0,1.01746534]
[1756692217479,0.001,108270.0,108260.0,1.01746534]
[1756692217714,0.00566442,108270.0,108260.0,1.01746534]
[1756692218156,0.00566442,108270.0,108260.0,0.85982534]
[1756692218366,0.001,108270.0,108260.0,1.01746534]
[1756692218580,0.001,108270.0,108260.0,1.03840416]
[1756692218799,0.367754,108300.0,108290.0,0.18468926]
[1756692219021,0.03241842,108300.0,108290.0,0.34747926]
[1756692219246,0.37241842,108300.0,108290.0,0.34747926]
[1756692219917,0.367754,108300.0,108290.0,0.34747926]
[1756692220132,0.00479579,108300.0,108290.0,0.34747926]
[1756692220351,0.00479579,108300.0,108290.0,0.67966649]
[1756692220552,0.00479579,108300.0,108290.0,0.68266649]
[1756692221145,0.00479579,108300.0,108290.0,0.7756465]
[1756692221322,0.00113137,108300.0,108290.0,0.9806465]
[1756692222634,0.00113137,108300.0,108290.0,0.64841927]
[1756692222855,0.00113137,108300.0,108290.0,0.44529927]
[1756692223112,0.34329302,108300.0,108290.0,0.19268926]
[1756692223321,0.01110579,108300.0,108290.0,0.19268926]
[1756692223763,0.05587579,108300.0,108290.0,0.19268926]
[1756692223977,0.38806302,108300.0,108290.0,0.19268926]
[1756692224196,0.05587579,108300.0,108290.0,0.19268926]
[1756692225599,0.05818321,108300.0,108290.0,0.19268926]
[1756692225839,0.39037044,108300.0,108290.0,0.19268926]
[1756692226009,0.60048922,108300.0,108290.0,0.19268926]
[1756692226228,0.94048922,108300.0,108290.0,0.19268926]
[1756692229875,0.94048922,108300.0,108290.0,0.008]
[1756692230075,0.94048922,108300.0,108290.0,0.19268926]
[1756692230497,0.94048922,108300.0,108290.0,0.008]
[1756692231161,0.41831979,108300.0,108290.0,0.19480926]
[1756692231341,0.03354979,108300.0,108290.0,0.68798649]
[1756692231591,0.00013137,108300.0,108290.0,0.7759665]
[1756692231733,0.00479579,108300.0,108290.0,0.7759665]
[1756692232095,0.00579579,108300.0,108290.0,0.83257623]
[1756692232324,0.00479579,108300.0,108290.0,0.48487258]
[1756692232504,0.00579579,108300.0,108290.0,0.48991258]
[1756692232834,0.00579579,108300.0,108290.0,0.44581927]
[1756692233038,0.00579579,108300.0,108290.0,0.44266927]
[1756692233446,0.00579579,108300.0,108290.0,0.44581927]
[1756692234489,0.00579579,108300.0,108290.0,0.44466927]
[1756692234675,0.00787579,108300.0,108290.0,0.44466927]
[1756692235077,0.00579579,108300.0,108290.0,0.44466927]
[1756692235277,0.00579579,108300.0,108290.0,0.44781927]
[1756692236382,0.00113137,108300.0,108290.0,0.79352292]
[1756692236592,0.00579579,108300.0,108290.0,0.79352292]
[1756692236787,0.00113137,108300.0,108290.0,0.79352292]
[1756692236963,0.00579579,108300.0,108290.0,0.79352292]
[1756692237571,0.00579579,108300.0,108290.0,0.86452292]
[1756692238569,0.00579579,108300.0,108290.0,0.51558927]
[1756692238771,0.00113137,108300.0,108290.0,0.51558927]
[1756692238978,0.00579579,108300.0,108290.0,0.51558927]
[1756692239178,0.00579579,108300.0,108290.0,0.51873927]
[1756692240255,0.00113137,108300.0,108290.0,0.86444292]
[1756692240910,0.00113137,108300.0,108290.0,0.87359388]
[1756692241552,0.00113137,108300.0,108290.0,0.51877927]
[1756692241759,0.00113137,108300.0,108290.0,0.86444292]
[1756692241976,0.00113137,108300.0,108290.0,1.06444292]
[1756692242831,0.00113137,108300.0,108290.0,1.08538174]
[1756692243454,0.00113137,108300.0,108290.0,1.08886174]
[1756692243663,1e-08,108300.0,108290.0,1.09826653]
[1756692243876,0.072517,108330.0,108320.0,0.1846381]
[1756692244087,0.072517,108330.0,108320.0,0.3444781]
[1756692244088,0.05164588,108330.0,108320.0,0.3444781]
[1756692244292,0.05475588,108330.0,108320.0,0.3444781]
[1756692245128,0.00479588,108330.0,108320.0,0.78316176]
[1756692245351,0.00013146,108330.0,108320.0,0.78631176]
[1756692245805,0.00579588,108330.0,108320.0,0.79131176]
[1756692246195,0.00579588,108330.0,108320.0,0.79231176]
[1756692247727,0.00787588,108330.0,108320.0,0.28573811]
[1756692247941,0.01098588,108330.0,108320.0,0.44129811]
[1756692248380,0.05575588,108330.0,108320.0,0.3483581]
[1756692249019,0.05575588,108330.0,108320.0,0.1906381]
[1756692249020,0.40376695,108330.0,108320.0,0.1906381]
[1756692249237,0.40145953,108330.0,108320.0,0.3483581]
[1756692249897,0.05575588,108330.0,108320.0,0.1906381]
[1756692250108,0.05575588,108330.0,108320.0,0.3483581]
[1756692250726,0.0580633,108330.0,108320.0,0.3483581]
[1756692251194,0.58838801,108330.0,108320.0,0.1906381]
[1756692251402,0.58608059,108330.0,108320.0,0.1906381]
[1756692252638,0.92608059,108330.0,108320.0,0.006]
[1756692253712,0.92608059,108330.0,108320.0,0.1896381]
[1756692253925,0.73809694,108330.0,108320.0,0.005]
[1756692254140,0.52930252,108320.0,108310.0,0.18463972]
[1756692254347,0.52930252,108320.0,108300.0,0.19387589]
[1756692254348,0.57926252,108320.0,108300.0,0.19387589]
[1756692254559,0.05254442,108310.0,108300.0,0.19387589]
[1756692254793,0.06627708,108310.0,108300.0,0.19387589]
[1756692255037,0.25093223,108310.0,108300.0,0.19387589]
[1756692255236,0.24862481,108310.0,108300.0,0.35167589]
[1756692255446,0.24862481,108310.0,108300.0,0.35367589]
[1756692255653,0.06396966,108310.0,108300.0,0.35167589]
[1756692255859,0.59663588,108310.0,108300.0,0.1846722]
[1756692256082,0.04477,108300.0,108290.0,0.18468926]
[1756692256307,0.05462442,108300.0,108290.0,0.43542927]
[1756692256934,0.40032807,108300.0,108290.0,0.18468926]
[1756692257146,0.04943442,108290.0,108280.0,0.2354112]
[1756692257364,0.05254442,108290.0,108280.0,0.48635121]
[1756692257592,0.05462442,108290.0,108280.0,0.48635121]
[1756692258214,0.05462442,108290.0,108280.0,0.19692623]
[1756692258215,0.05793184,108290.0,108280.0,0.19692623]
[1756692258422,0.58837218,108290.0,108280.0,0.35488623]
[1756692258634,0.58606476,108290.0,108280.0,0.19692623]
[1756692258866,0.74398476,108290.0,108280.0,0.18769092]
[1756692259102,0.74398476,108290.0,108280.0,0.003]
[1756692259103,1.08398476,108290.0,108280.0,0.003]
[1756692259509,1.08398476,108290.0,108280.0,0.18770631]
[1756692259722,1.08398476,108290.0,108280.0,0.18870631]
[1756692260150,1.11174176,108290.0,108280.0,0.18870631]
[1756692261269,0.7691325,108290.0,108280.0,0.18870631]
[1756692261480,0.9270125,108290.0,108280.0,0.18870631]
[1756692262112,0.42342885,108290.0,108280.0,0.18870631]
[1756692262331,0.9270125,108290.0,108280.0,0.18870631]
[1756692263160,0.7639425,108290.0,108280.0,0.19078631]
[1756692263576,0.05048185,108290.0,108280.0,0.28698632]
[1756692263776,0.00571185,108290.0,108280.0,0.28698632]
[1756692264611,0.00571185,108290.0,108280.0,0.28376632]
[1756692264816,0.40373292,108290.0,108280.0,0.34658631]
[1756692265025,0.4014255,108290.0,108280.0,0.34658631]